bitfinex-derivatives/quotes_ETHF0:USTF0_20260308
["timestamp","ask_amount","ask_price","bid_price","bid_amount"]
[1772997859446,0.58520383,1960.7,1959.3,0.59970981]
[1772997859744,6.683,1960.4,1959.3,0.59970981]
[1772997859942,0.00607861,1961.0,1960.0,0.59970981]
[1772997860240,0.00607861,1961.0,1960.2,0.59970981]
[1772997860439,0.00607861,1961.0,1960.2,0.60449955]
[1772997861045,0.57922682,1960.9,1960.2,0.60449955]
[1772997861543,0.57922682,1960.9,1959.2,0.59970981]
[1772997862544,0.57922682,1960.9,1959.2,0.60343092]
[1772997862841,0.57430654,1960.6,1959.2,0.00372111]
[1772997863046,0.57430654,1960.4,1959.2,0.00372111]
[1772997863348,0.567527,1960.2,1959.2,0.00372111]
[1772997865445,0.567527,1960.2,1958.9,0.59970981]
[1772997865642,0.56492418,1959.9,1958.3,0.59970981]
[1772997865842,0.56492418,1959.7,1958.3,0.59970981]
[1772997866048,0.56492418,1959.5,1958.3,0.59970981]
[1772997866445,0.56990078,1959.5,1958.3,0.60563435]
[1772997866640,7.24692418,1959.4,1958.3,0.60563435]
[1772997866842,0.56492418,1959.3,1958.3,0.60563435]
[1772997867042,7.24692418,1959.3,1958.3,0.60563435]
[1772997867438,0.55082313,1959.2,1958.3,0.60563435]
[1772997868239,0.55579973,1959.5,1958.3,0.60563435]
[1772997868445,0.55082313,1960.4,1958.3,0.60563435]
[1772997868647,0.55082313,1960.5,1959.2,0.59970981]
[1772997868842,6.683,1960.6,1959.4,0.59970981]
[1772997869147,0.55082313,1960.7,1959.4,0.59970981]
[1772997869451,0.54916308,1960.5,1959.4,0.59970981]
[1772997869648,0.54916308,1960.3,1959.4,0.59970981]
[1772997869848,7.23216308,1960.2,1959.4,0.59970981]
[1772997870249,0.54916308,1960.1,1958.8,0.59970981]
[1772997870749,0.54916308,1959.9,1958.8,0.59970981]
[1772997871045,0.54916308,1959.7,1958.8,0.59970981]
[1772997871245,6.683,1959.6,1958.8,0.59970981]
[1772997871441,7.15149102,1959.6,1958.8,0.59970981]
[1772997871642,0.46849102,1959.5,1958.4,0.59970981]
[1772997872953,6.683,1959.4,1958.4,0.59970981]
[1772997873452,0.46849102,1959.5,1958.4,0.59970981]
[1772997873756,6.683,1959.4,1958.4,0.59970981]
[1772997874249,0.48149915,1959.7,1958.4,0.59970981]
[1772997874554,7.16449915,1959.7,1958.4,0.59970981]
[1772997875545,0.00657689,1960.3,1958.8,0.57295273]
[1772997875546,0.47837152,1959.9,1958.8,0.57295273]
[1772997875750,6.683,1960.1,1958.8,0.57295273]
[1772997875951,6.683,1960.1,1959.0,0.57295273]
[1772997876347,0.47837152,1960.0,1959.0,0.57295273]
[1772997876743,6.683,1959.9,1959.0,0.57295273]
[1772997877144,0.47837152,1960.0,1959.0,0.57295273]
[1772997877354,6.683,1960.1,1959.0,0.57295273]
[1772997877745,0.47911698,1960.0,1959.0,0.57295273]
[1772997878754,6.683,1959.9,1959.0,0.57295273]
[1772997879253,0.47911698,1960.0,1959.0,0.57295273]
[1772997879453,6.683,1959.9,1959.0,0.57295273]
[1772997880055,7.1636801,1959.9,1959.0,0.57295273]
[1772997881247,0.4806801,1959.9,1959.0,0.57295273]
[1772997881655,6.683,1959.8,1959.0,0.57295273]
[1772997882454,0.4804066,1959.7,1958.7,0.57295273]
[1772997882855,6.683,1959.6,1958.7,0.57295273]
[1772997883156,0.4804066,1959.6,1958.7,0.57295273]
[1772997886157,0.48224996,1959.4,1958.4,0.57295273]
[1772997886356,7.16524996,1959.3,1958.4,0.57295273]
[1772997886660,6.683,1959.2,1958.4,0.57295273]
[1772997886858,7.16524996,1959.2,1958.4,0.57295273]
[1772997887257,0.48224996,1959.2,1958.4,0.57295273]
[1772997887457,0.47769361,1959.4,1958.4,0.57295273]
[1772997887863,7.16069361,1959.4,1958.4,0.57295273]
[1772997888662,0.47769361,1959.3,1958.4,0.57295273]
[1772997889363,0.47769361,1959.3,1958.3,0.57887727]
[1772997889862,0.25516,1959.7,1958.3,0.57887727]
[1772997889863,0.47310315,1959.1,1958.3,0.57887727]
[1772997890062,7.15710315,1959.1,1958.3,0.57887727]
[1772997892264,7.15632979,1959.4,1958.3,0.57887727]
[1772997892458,0.47232979,1959.3,1958.3,0.57887727]
[1772997893664,0.47232979,1959.3,1958.3,0.00592454]
[1772997895167,0.47096068,1959.1,1958.3,0.00592454]
[1772997895368,0.47096068,1958.9,1958.3,0.00592454]
[1772997895567,0.4764515,1958.9,1958.3,0.00592454]
[1772997895766,6.684,1958.8,1957.8,0.57295273]
[1772997896669,6.684,1958.8,1957.8,0.57897646]
[1772997897071,7.12514965,1958.8,1957.8,0.57897646]
[1772997898069,0.44114965,1958.7,1957.8,0.57897646]
[1772997898977,0.44114965,1958.5,1957.8,0.00602373]
[1772997899879,0.43680886,1958.3,1957.8,0.00602373]
[1772997900179,7.12180886,1958.2,1957.8,0.00602373]
[1772997900379,7.12180886,1958.2,1957.0,40.8]
[1772997900380,0.43680886,1958.1,1957.1,0.57295273]
[1772997900581,6.685,1958.0,1957.1,0.57295273]
[1772997900776,0.43680886,1958.8,1957.3,0.57295273]
[1772997901079,0.00549082,1958.9,1957.7,0.57295273]
[1772997901274,0.00549082,1958.9,1957.7,0.57707445]
[1772997901471,0.00549082,1958.9,1958.1,0.57295273]
[1772997901675,7.12681201,1959.5,1958.1,0.57295273]
[1772997901879,0.44181201,1959.5,1958.3,0.57295273]
[1772997902075,6.686,1959.4,1958.3,0.57295273]
[1772997902270,0.44730283,1959.3,1958.3,0.57295273]
[1772997902480,0.44730283,1959.3,1957.8,0.57295273]
[1772997902680,0.44730283,1959.3,1957.7,0.00412172]
[1772997902681,0.44730283,1958.9,1957.7,0.00412172]
[1772997902879,0.44720223,1958.7,1957.7,0.57776944]
[1772997903481,0.44720223,1958.7,1957.7,0.00412172]
[1772997903676,0.47086107,1958.4,1956.8,0.57364772]
[1772997903881,6.686,1958.6,1956.8,0.57364772]
[1772997903882,0.47086107,1958.0,1956.8,0.57364772]
[1772997904083,0.47086107,1957.8,1956.4,0.57364772]
[1772997904284,0.47086107,1957.7,1956.4,0.57364772]
[1772997904672,0.47086107,1957.5,1956.4,0.57364772]
[1772997904877,0.47086107,1957.3,1956.4,0.57818303]
[1772997905783,6.686,1957.2,1956.4,0.57818303]
[1772997907381,0.49843596,1957.1,1956.4,0.57818303]
[1772997908376,0.49843596,1957.1,1956.4,0.00453531]
[1772997908584,0.49843596,1957.1,1956.1,0.57624956]
[1772997908780,7.18643596,1957.3,1956.1,0.57624956]
[1772997909575,0.49843596,1957.3,1956.1,0.58204135]
[1772997909783,6.688,1957.2,1956.1,0.58204135]
[1772997910684,7.18558934,1957.2,1956.1,0.58204135]
[1772997910980,0.49758934,1957.1,1956.1,0.58204135]
[1772997911381,6.689,1957.0,1956.1,0.58204135]
[1772997911684,0.49851726,1956.8,1956.1,0.58204135]
[1772997912186,0.49851726,1956.8,1956.1,0.00579179]
[1772997912381,0.50274803,1957.5,1956.2,0.57624956]
[1772997912586,7.19174803,1957.5,1956.3,0.57624956]
[1772997912781,0.49851726,1957.4,1956.3,0.57624956]
[1772997913381,6.689,1957.3,1956.3,0.57624956]
[1772997914081,0.49851726,1957.4,1956.3,0.57624956]
[1772997914281,6.69,1957.3,1956.3,0.57624956]
[1772997914981,0.49851726,1957.4,1956.3,0.57624956]
[1772997915186,6.69,1957.3,1956.3,0.57624956]
[1772997915687,7.2591795,1957.3,1956.3,0.57624956]
[1772997915882,0.57341027,1957.5,1956.3,9.2]
[1772997916084,0.5691795,1957.4,1956.5,0.57624956]
[1772997917088,0.5691795,1957.4,1956.3,0.57624956]
[1772997918385,0.5691795,1957.4,1956.1,0.58204135]
[1772997918589,0.57235101,1957.2,1956.1,0.58204135]
[1772997918887,0.00423077,1957.5,1956.3,0.57624956]
[1772997918888,6.69,1957.4,1956.3,0.57624956]
[1772997919090,7.26658178,1957.5,1956.3,0.57624956]
[1772997919689,7.26658178,1957.5,1956.3,0.83183956]
[1772997919885,0.57235101,1957.4,1956.4,0.57624956]
[1772997920290,7.26335101,1957.4,1956.4,0.57624956]
[1772997921290,7.26335101,1957.4,1956.5,0.57624956]
[1772997922587,0.57235101,1957.4,1956.5,0.57624956]
[1772997922793,0.00423077,1957.5,1956.7,0.57624956]
[1772997923192,0.00423077,1957.5,1956.9,0.57624956]
[1772997924194,0.00423077,1957.5,1956.6,0.57624956]
[1772997924195,0.57658178,1957.5,1956.6,0.57624956]
[1772997925688,0.57235101,1957.3,1956.6,0.57624956]
[1772997933995,0.00423077,1957.5,1956.6,12.97745644]
[1772997934302,0.00423077,1957.5,1956.7,0.55609562]
[1772997935003,0.55038613,1957.5,1956.7,0.55609562]
[1772997935601,0.54615536,1957.3,1956.5,0.55609562]
[1772997936398,0.54615536,1957.2,1956.5,0.55609562]
[1772997937597,0.54615536,1957.2,1956.4,0.55609562]
[1772997939504,0.54615536,1957.2,1956.2,0.55609562]
[1772997940998,0.54615536,1957.0,1956.2,0.55609562]
[1772997941197,7.23715536,1956.9,1956.2,0.55609562]
[1772997941701,0.54615536,1956.8,1956.2,0.55609562]
[1772997943300,0.54290104,1957.4,1956.2,0.55609562]
[1772997943505,0.54290104,1957.2,1956.2,0.55609562]
[1772997945410,7.23815536,1957.1,1956.2,0.55609562]
[1772997946010,0.54615536,1957.1,1956.2,0.55609562]
[1772997946211,6.692,1957.0,1956.2,0.55609562]
[1772997948107,0.54615536,1957.4,1956.2,0.55609562]
[1772997948301,0.54615536,1957.4,1956.4,0.55609562]
[1772997948806,0.54615536,1957.4,1956.5,0.55609562]
[1772997950906,0.00423077,1957.5,1956.7,0.55609562]
[1772997953413,0.70452404,1958.8,1956.6,3.38675688]
[1772997953414,0.54615536,1958.0,1956.9,0.55609562]
[1772997953713,0.54615536,1958.2,1957.1,0.55609562]
[1772997954115,7.23715536,1958.2,1957.1,0.55609562]
[1772997954313,0.55041693,1958.2,1957.1,0.55609562]
[1772997957411,0.00426157,1958.2,1957.3,0.55609562]
[1772997957714,0.55041693,1958.2,1957.4,0.55609562]
[1772997960220,0.00426157,1958.2,1957.4,0.55609562]
[1772997961619,0.55041693,1958.2,1957.4,0.55609562]
[1772997964319,0.55041693,1958.2,1956.8,0.55128866]
[1772997964716,0.55041693,1958.2,1956.9,0.55128866]
[1772997966122,0.55041693,1958.2,1956.8,0.56899513]
[1772997968723,0.55965261,1958.0,1956.8,0.56899513]
[1772997969623,0.55415456,1957.8,1956.8,0.56899513]
[1772997973020,0.556411,1957.6,1956.8,0.56899513]
[1772997973822,7.2497603,1957.8,1956.8,0.56899513]
[1772997974123,0.5597603,1957.7,1956.8,0.56899513]
[1772997975321,0.5597603,1957.7,1956.4,40.8]
[1772997975322,0.5597603,1957.7,1956.5,0.56899513]
[1772997980826,0.57001592,1957.6,1956.5,0.56899513]
[1772997982832,0.56187554,1957.4,1956.2,0.56899513]
[1772997983034,0.56187554,1957.2,1956.2,0.56899513]
[1772997983932,0.56187554,1957.2,1956.1,0.57478692]
[1772997984829,0.56187554,1957.2,1956.1,0.00579179]
[1772997986035,0.5605268,1957.0,1956.0,0.56899513]
[1772997986230,6.691,1957.1,1956.0,0.56899513]
[1772997986436,7.2515268,1957.1,1956.0,0.56899513]
[1772997987139,7.2515268,1957.1,1956.0,0.57514672]
[1772997987534,0.55340455,1957.0,1956.0,0.57514672]
[1772997992637,0.55006604,1956.8,1956.0,0.57514672]
[1772997992837,0.55385071,1956.8,1956.0,0.57514672]
[1772997993842,6.692,1956.7,1956.0,0.57514672]
[1772997995942,0.54996967,1957.7,1956.2,0.54395467]
[1772997996243,0.54996967,1957.4,1956.2,0.54395467]
[1772997996945,7.24296967,1957.3,1956.2,0.54395467]
[1772997999547,0.00526509,1957.4,1956.3,0.54395467]
[1772997999750,0.25533,1958.4,1956.5,0.54395467]
[1772997999751,6.693,1957.6,1956.5,0.54395467]
[1772998000051,6.693,1957.7,1956.7,0.54395467]
[1772998000250,6.693,1957.7,1956.8,0.54395467]
[1772998000651,7.25755164,1957.8,1956.8,0.54395467]
[1772998000851,0.56455164,1957.7,1956.8,0.54395467]
[1772998001454,0.57296018,1957.8,1956.8,0.54395467]
[1772998006255,0.57368424,1958.6,1957.2,0.54395467]
[1772998007157,0.57889433,1958.6,1957.2,0.54395467]
[1772998008155,0.57368424,1958.4,1957.2,0.54395467]
[1772998008456,0.57368424,1958.4,1957.3,0.54395467]
[1772998008655,0.57368424,1958.4,1957.4,0.54395467]
[1772998008856,0.57368424,1958.4,1957.4,0.54767663]
[1772998010457,7.26368424,1958.4,1957.4,0.54767663]
[1772998010762,0.57368424,1958.3,1957.4,0.54767663]
[1772998013064,0.57368424,1958.1,1957.4,0.54767663]
[1772998013365,0.57368424,1957.9,1957.4,0.54767663]
[1772998018162,0.57368424,1957.9,1957.4,0.00372196]
[1772998018367,0.57368424,1957.9,1957.4,0.54767663]
[1772998020964,0.57368424,1957.9,1957.4,0.00372196]
[1772998021167,0.57368424,1957.9,1957.4,0.54767663]
[1772998021567,0.57368424,1957.9,1957.4,0.00372196]
[1772998023561,0.57368424,1957.9,1957.4,0.58799873]
[1772998023868,0.57368424,1957.9,1956.7,40.8]
[1772998023869,0.57368424,1957.9,1957.3,0.58427677]
[1772998024067,0.55523526,1957.7,1957.3,0.58427677]
[1772998024370,7.24423526,1957.7,1957.3,0.58427677]
[1772998024766,0.55523526,1957.6,1956.8,0.58427677]
[1772998025069,0.55523526,1957.6,1956.8,0.58819986]
[1772998025370,6.689,1957.7,1956.8,0.58819986]
[1772998025571,7.26663917,1957.7,1956.8,0.58819986]
[1772998026267,0.57763917,1957.7,1956.8,0.58819986]
[1772998026568,7.26663917,1957.7,1956.8,0.58819986]
[1772998027775,0.57763917,1957.7,1956.8,0.58819986]
[1772998027976,0.57685068,1957.6,1956.8,0.58819986]
[1772998030777,7.27482262,1957.7,1956.8,0.58819986]
[1772998031279,0.58482262,1957.7,1956.8,0.58819986]
[1772998032178,3.13526455,1958.6,1957.0,0.55388274]
[1772998032381,0.58482262,1958.4,1957.4,0.55388274]
[1772998032570,0.58482262,1958.4,1957.3,0.25546]
[1772998032571,0.59003271,1958.6,1957.6,0.55388274]
[1772998032776,0.00521009,1958.6,1957.6,0.55388274]
[1772998032976,0.00521009,1958.6,1957.8,0.55388274]
[1772998033976,0.00521009,1958.6,1957.9,40.8]
[1772998034281,0.58482262,1959.0,1958.0,0.55388274]
[1772998035075,0.58984737,1959.0,1958.2,0.55388274]
[1772998035282,0.58984737,1959.0,1958.2,0.55954474]
[1772998036288,0.58482262,1958.8,1958.2,0.55954474]
[1772998037089,0.58984737,1959.0,1958.2,0.55954474]
[1772998038983,0.58984737,1959.0,1958.2,0.005662]
[1772998039288,0.58482262,1958.8,1958.2,0.55954474]
[1772998039683,0.58482262,1958.8,1957.6,9.212]
[1772998039684,0.58482262,1958.8,1957.6,0.55388274]
[1772998040487,0.58482262,1958.6,1957.6,0.55388274]
[1772998040688,0.58482262,1958.6,1957.6,0.55946841]
[1772998040992,0.58482262,1958.4,1957.6,0.55946841]
[1772998043293,0.58482262,1958.8,1957.6,0.55946841]
[1772998043490,0.58482262,1958.6,1957.6,0.55946841]
[1772998046487,0.00502475,1959.0,1957.8,0.55388274]
[1772998046694,0.58482262,1958.8,1957.8,0.55388274]
[1772998046896,0.58482262,1959.9,1958.8,0.55388274]
[1772998047198,0.58482262,1960.3,1959.0,0.55388274]
[1772998047492,0.58482262,1960.2,1959.1,5.43364003]
[1772998047692,0.58482262,1960.2,1959.2,0.55388274]
[1772998047893,0.59110557,1960.2,1959.2,0.55880795]
[1772998049292,0.59110557,1960.2,1959.2,0.00492521]
[1772998049293,3.71487708,1960.0,1959.2,0.00492521]
[1772998049493,0.58482262,1959.6,1958.6,0.55388274]
[1772998049697,0.58482262,1959.4,1958.0,8.929]
[1772998049894,0.58482262,1959.3,1958.1,0.55388274]
[1772998050393,0.58482262,1959.0,1958.1,0.55997625]
[1772998050594,0.58482262,1958.9,1958.1,0.55997625]
[1772998050794,0.58482262,1959.1,1958.1,0.55997625]
[1772998055000,7.27082262,1959.1,1958.1,0.55997625]
[1772998055200,0.59831976,1959.0,1958.1,0.55997625]
[1772998057100,0.59831976,1959.0,1958.1,0.00609351]
[1772998057308,0.59831976,1959.0,1958.1,0.59346656]
[1772998058204,0.59831976,1959.0,1958.1,0.00609351]
[1772998058406,0.59831976,1958.7,1957.9,0.58737305]
[1772998058704,0.59831976,1958.5,1957.9,0.58737305]
[1772998059403,0.60457877,1958.5,1957.9,0.59264845]
[1772998059606,0.00625901,1958.5,1957.9,0.59264845]
[1772998059804,0.60457877,1958.5,1957.9,0.0052754]
[1772998060008,0.60457877,1958.5,1957.9,0.59264845]
[1772998061000,0.60457877,1958.5,1957.9,0.0052754]
[1772998061401,0.60457877,1958.5,1957.7,0.58737305]
[1772998061601,0.60457877,1958.5,1957.5,0.58737305]
[1772998062401,0.60457877,1958.5,1957.5,0.59304099]
[1772998064204,0.59831976,1958.3,1957.5,0.59304099]
[1772998064404,0.00625901,1958.5,1957.5,0.59304099]
[1772998064705,0.60457877,1958.5,1957.5,0.59304099]
[1772998065400,0.00625901,1958.5,1957.5,0.59304099]
[1772998065605,0.00625901,1958.5,1957.7,0.58737305]
[1772998066803,0.60457877,1958.5,1957.7,0.58737305]
[1772998076018,0.59831976,1958.4,1957.7,0.58737305]
[1772998076815,0.00625901,1958.5,1957.7,0.58737305]
[1772998077020,0.60457877,1958.5,1957.7,0.58737305]
[1772998081023,0.59831976,1958.4,1957.7,0.58737305]
[1772998082027,0.59831976,1958.3,1957.7,0.58737305]
[1772998082528,0.59831976,1958.3,1957.5,0.59304099]
[1772998084433,0.57997255,1958.2,1957.5,0.59304099]
[1772998093638,0.58078084,1958.1,1957.5,0.59304099]
[1772998098336,0.58078084,1958.1,1957.5,0.57382091]
[1772998099742,0.58078084,1958.0,1957.5,0.57382091]
[1772998099935,0.02057351,1958.4,1957.5,0.57382091]
[1772998100137,4.00419149,1959.7,1958.2,0.56815297]
[1772998100343,0.58078084,1960.4,1958.6,0.56815297]
[1772998100731,0.58078084,1960.4,1958.8,0.45390019]
[1772998100936,0.58078084,1960.3,1958.6,9.59890019]
[1772998101138,0.58573004,1960.3,1958.6,9.59890019]
[1772998101442,0.58078084,1959.9,1958.5,0.45394203]
[1772998101739,0.58078084,1959.7,1958.5,0.45394203]
[1772998104436,0.58078084,1959.5,1957.6,0.45237052]
[1772998104631,0.58078084,1959.3,1957.6,0.45237052]
[1772998104835,0.58078084,1959.3,1957.8,0.45237052]
[1772998105739,6.687,1959.4,1957.5,9.06266794]
[1772998105740,0.58078084,1959.1,1957.6,0.45410531]
[1772998106041,3.12905764,1959.2,1957.6,0.45410531]
[1772998106042,0.58078084,1958.9,1957.6,0.45410531]
[1772998106241,0.58492748,1958.9,1957.6,0.45410531]
[1772998106441,0.58078084,1958.7,1957.6,0.45410531]
[1772998108344,0.58078084,1958.5,1957.6,0.45410531]
[1772998109145,0.58078084,1958.4,1957.6,0.45410531]
[1772998111940,0.58078084,1958.4,1957.5,0.00566794]
[1772998112835,0.58078084,1958.4,1957.2,0.45970941]
[1772998113844,0.58078084,1958.4,1957.2,0.46417433]
[1772998114640,0.58750811,1958.2,1957.2,0.46417433]
[1772998118645,7.27550811,1958.1,1957.2,0.46417433]
[1772998118847,0.58750811,1958.0,1957.2,0.46417433]
[1772998119647,0.58750811,1958.3,1957.2,0.46417433]
[1772998120947,0.58750811,1958.6,1957.3,40.8]
[1772998121250,0.58750811,1958.6,1957.4,0.4392951]
[1772998127556,0.58750811,1958.4,1957.4,0.4392951]
[1772998127755,0.58750811,1958.2,1957.4,0.4392951]
[1772998129858,0.58750811,1958.8,1957.4,0.4392951]
[1772998130050,0.58750811,1958.4,1957.4,0.4392951]
[1772998130253,0.58750811,1958.7,1957.6,0.46143271]
[1772998130454,0.58750811,1958.7,1957.7,0.25541]
[1772998130750,0.59165475,1958.9,1958.0,0.46143271]
[1772998130952,0.00414664,1958.9,1958.2,0.46143271]
[1772998132360,0.00042468,1958.9,1958.2,0.46143271]
[1772998133360,0.25507,1960.4,1958.2,0.46143271]
[1772998133361,0.58750811,1959.4,1958.2,0.46143271]
[1772998134054,0.58750811,1959.4,1958.3,0.4601214]
[1772998134255,0.59196813,1959.4,1958.3,0.4601214]
[1772998139162,0.58750811,1959.2,1958.3,0.4601214]
[1772998140651,0.58750811,1959.2,1957.7,0.45686041]
[1772998143163,0.58750811,1959.2,1957.8,0.45058544]
[1772998143164,0.54782586,1959.1,1957.8,0.45058544]
[1772998143857,0.54782586,1959.0,1957.8,0.45058544]
[1772998148464,0.54457598,1958.9,1957.8,0.45058544]
[1772998156469,0.54457598,1958.7,1957.8,0.45058544]
[1772998156667,0.54457598,1958.6,1957.8,0.45058544]
[1772998158771,0.54457598,1958.6,1957.3,0.45459038]
[1772998164274,0.54457598,1958.5,1957.3,0.46546128]
[1772998167288,0.54457598,1958.3,1957.3,0.46546128]
[1772998167587,0.54457598,1958.1,1957.3,0.46546128]
[1772998167885,0.54457598,1957.9,1957.3,0.46546128]
[1772998168081,0.00654758,1957.9,1957.3,0.46546128]
[1772998168785,0.55112356,1957.9,1957.3,0.46546128]
[1772998170485,0.55112356,1957.9,1957.2,0.45258379]
[1772998170882,0.54457598,1957.8,1957.2,0.45258379]
[1772998172089,0.54457598,1957.8,1956.3,0.45248688]
[1772998172289,0.54457598,1957.8,1956.7,0.45248688]
[1772998172489,0.54457598,1957.8,1956.8,0.45248688]
[1772998172686,0.00654758,1957.9,1956.9,0.45248688]
[1772998173091,0.00654758,1957.9,1956.9,0.45900245]
[1772998173388,0.5643599,1957.9,1956.9,0.45900245]
[1772998180897,0.00654758,1957.9,1957.0,0.45049631]
[1772998181893,0.5643599,1957.9,1957.0,0.45049631]
[1772998184203,0.55781232,1957.7,1956.9,0.45844867]
[1772998193708,0.5643599,1957.9,1956.9,0.45844867]
[1772998193914,0.5643599,1957.9,1957.1,0.49333246]
[1772998194613,0.00654758,1957.9,1957.1,0.49333246]
[1772998195712,0.55781232,1958.6,1957.3,0.48765679]
[1772998196312,0.55781232,1958.5,1957.3,0.48765679]
[1772998196507,0.56376329,1958.5,1957.3,0.48765679]
[1772998200613,0.55781232,1958.9,1957.6,0.48664484]
[1772998200912,0.55781232,1958.9,1957.9,0.48069387]
[1772998201106,0.55781232,1959.5,1958.2,0.48069387]
[1772998201508,0.55781232,1959.5,1958.1,3.1262467]
[1772998201509,0.55781232,1959.5,1958.4,0.47689974]
[1772998201714,0.56310716,1959.5,1958.4,0.48122015]
[1772998202216,0.55781232,1959.4,1958.4,0.48122015]
[1772998203419,0.55781232,1959.4,1958.5,0.4691617]
[1772998204616,0.55781232,1959.4,1958.5,0.2647617]
[1772998205822,0.55781232,1959.4,1958.4,0.26229013]
[1772998206723,0.55859092,1959.5,1958.4,0.26229013]
[1772998209921,0.55859092,1959.5,1958.4,0.00432041]
[1772998210224,0.55329608,1959.4,1958.4,0.00432041]
[1772998210616,0.55329608,1959.4,1958.2,0.25923646]
[1772998210819,0.55329608,1959.1,1958.0,0.26355687]
[1772998211019,0.55329608,1959.1,1957.6,0.26355687]
[1772998211622,0.55329608,1959.1,1957.6,0.2675814]
[1772998213427,0.55329608,1959.0,1957.6,0.2675814]
[1772998213724,0.55329608,1958.9,1957.6,0.2675814]
[1772998225638,0.55329608,1958.9,1957.8,0.26331273]
[1772998225837,0.55329608,1958.9,1958.0,0.26331273]
[1772998228232,0.00529484,1959.5,1958.0,0.26331273]
[1772998228438,0.55329608,1959.4,1958.0,0.26331273]
[1772998229234,0.55329608,1959.4,1958.2,0.26334299]
[1772998236043,0.55329608,1959.4,1957.9,0.26530564]
[1772998241446,0.5490745,1959.2,1957.7,0.28068041]
[1772998257354,0.5490745,1959.2,1958.1,0.30726097]
[1772998264362,0.5490745,1959.2,1957.7,0.31025923]
[1772998264562,0.59403594,1959.0,1957.7,0.31025923]
[1772998267866,0.59493841,1958.8,1957.7,0.31025923]
[1772998271466,0.59493841,1958.7,1957.7,0.31025923]
[1772998273768,0.59493841,1958.7,1957.6,0.33598797]
[1772998274965,0.59493841,1958.5,1957.6,0.33598797]
[1772998277773,0.59493841,1958.5,1957.6,0.00402453]
[1772998277968,0.59493841,1958.4,1957.4,0.30966349]
[1772998278166,0.59493841,1958.4,1957.2,0.31368802]
[1772998278673,0.59493841,1958.4,1957.3,0.31368802]
[1772998279167,0.59493841,1958.4,1957.3,0.31772457]
[1772998282181,0.59493841,1958.4,1957.3,0.00403655]
[1772998282377,0.59493841,1958.4,1957.3,0.27442519]
[1772998282570,0.59493841,1958.3,1957.3,0.27442519]
[1772998282770,0.59493841,1958.3,1957.4,0.27038864]
[1772998285578,0.59493841,1958.3,1957.6,0.26835822]
[1772998286286,0.59493841,1958.6,1958.1,0.26835822]
[1772998287284,0.59493841,1958.8,1958.3,0.26835822]
[1772998287488,0.59493841,1959.2,1958.5,0.26865692]
[1772998288180,0.59493841,1958.9,1958.2,0.26865692]
[1772998289280,0.59493841,1958.9,1958.1,0.26750242]
[1772998291388,0.59493841,1958.7,1958.1,0.26750242]
[1772998297789,0.55277853,1958.9,1958.4,0.26394705]
[1772998297993,0.55277853,1958.9,1958.2,0.26394705]
[1772998299796,0.55277853,1958.7,1958.2,0.26394705]
[1772998300097,0.55277853,1958.6,1958.2,0.26394705]
[1772998300295,0.55277853,1958.6,1958.0,0.26551859]
[1772998302395,10.0,1958.7,1958.4,0.26464302]
[1772998302699,9.75988501,1958.7,1958.4,0.26464302]
[1772998302893,9.73535698,1958.7,1958.4,0.26464302]
[1772998303094,0.55277853,1959.0,1958.5,2.08521948]
[1772998303294,0.60028749,1959.2,1958.5,2.08521948]
[1772998303595,0.60028749,1959.2,1957.9,12.36311459]
[1772998303999,0.60028749,1959.2,1958.0,46.42561746]
[1772998307501,0.60307281,1959.4,1958.3,0.25533]
[1772998307696,0.00529484,1959.5,1958.5,3.12511459]
[1772998307894,0.60307281,1959.9,1958.8,3.12511459]
[1772998308200,0.60307281,1959.9,1958.9,15.06739101]
[1772998308899,0.60676138,1959.9,1958.9,15.07346307]
[1772998309096,0.00368857,1959.9,1958.9,15.07346307]
[1772998309298,0.00368857,1959.9,1959.1,3.12511459]
[1772998309500,0.00368857,1959.9,1959.2,40.8]
[1772998311298,0.60754308,1959.9,1959.2,40.8]
[1772998312390,0.60754308,1959.9,1958.9,9.23507206]
[1772998312793,0.60754308,1959.9,1959.0,5.40361009]
[1772998313001,0.60754308,1959.9,1959.0,46.62896084]
[1772998313501,0.00368857,1959.9,1959.0,46.62896084]
[1772998315303,0.60842796,1959.9,1959.0,46.62896084]
[1772998316004,0.00368857,1959.9,1959.1,3.12511459]
[1772998316498,3.38008459,1961.1,1959.2,5.34992873]
[1772998316703,0.93380096,1961.8,1959.8,0.19549621]
[1772998316704,0.55277853,1961.0,1959.8,0.19549621]
[1772998317000,0.55277853,1961.0,1960.0,0.19549621]
[1772998317703,0.55737592,1961.0,1960.0,0.19549621]
[1772998318706,0.55277853,1960.9,1959.6,9.49428605]
[1772998319007,0.55277853,1960.7,1959.6,9.291]
[1772998319703,0.55277853,1960.7,1959.6,0.21246578]
[1772998320503,0.00459739,1961.0,1960.3,0.21246578]
[1772998320697,0.55277853,1961.3,1960.5,0.21246578]
[1772998320899,0.55277853,1961.3,1960.4,9.301]
[1772998321603,0.55277853,1961.0,1959.6,0.21313402]
[1772998322202,0.55277853,1961.0,1959.7,0.21313402]
[1772998322405,0.55277853,1960.7,1959.5,0.21313402]
[1772998322607,0.55882699,1960.7,1959.5,0.21952258]
[1772998325105,0.55749423,1960.5,1959.5,0.21952258]
[1772998325299,0.55749423,1960.4,1959.1,0.21314559]
[1772998325905,0.55749423,1960.2,1959.1,0.21314559]
[1772998326299,0.55749423,1960.2,1959.1,0.21909724]
[1772998327806,0.55749423,1960.1,1958.7,0.23557236]
[1772998328306,0.55749423,1959.9,1958.7,0.23557236]
[1772998328515,0.55749423,1959.7,1958.4,0.23557236]
[1772998328815,0.55749423,1959.5,1958.4,0.24134875]
[1772998329410,0.55749423,1959.5,1958.4,0.00577639]
[1772998329712,0.55749423,1959.3,1958.4,0.00577639]
[1772998330010,0.56319308,1959.3,1958.4,0.00577639]
[1772998330409,6.682,1959.2,1958.4,0.00577639]
[1772998330611,0.55749423,1959.1,1958.4,0.00577639]
[1772998331314,0.55749423,1959.1,1958.0,0.22249987]
[1772998332410,0.55749423,1959.1,1958.0,0.22687132]
[1772998333009,0.55749423,1959.1,1958.0,0.00437145]
[1772998333213,0.55749423,1959.1,1957.6,0.22365994]
[1772998333708,0.55749423,1958.9,1957.4,0.22365994]
[1772998334110,0.55749423,1958.6,1957.2,0.22365994]
[1772998334309,0.55749423,1958.4,1957.2,0.22778847]
[1772998336316,0.55749423,1958.2,1957.2,0.22778847]
[1772998337412,0.55749423,1958.0,1957.2,0.22778847]
[1772998338311,0.55749423,1958.0,1957.2,0.00412853]
[1772998338913,0.55749423,1958.0,1956.9,0.22042903]
[1772998339210,0.55749423,1958.0,1956.5,40.8]
[1772998339517,0.55749423,1958.0,1956.6,0.22319872]
[1772998339912,0.55749423,1958.0,1956.6,0.22829805]
[1772998340114,0.55749423,1957.8,1956.6,0.22829805]
[1772998340312,0.56232955,1957.8,1956.6,0.22829805]
[1772998340509,0.56232955,1957.8,1956.6,0.00509933]
[1772998340911,0.55749423,1957.6,1956.6,0.00509933]
[1772998341116,0.55749423,1957.4,1956.2,0.22319872]
[1772998342110,0.55749423,1957.4,1956.2,0.22935378]